bitfinex/quotes_SOLUSD_20240621
["timestamp","ask_amount","ask_price","bid_price","bid_amount"]
[1718987187463,260.4,130.71,130.64,6.0107]
[1718987187675,6.1215,130.69,130.64,12.134]
[1718987187875,21.35730457,130.72,130.65,6.123]
[1718987188086,20.0,130.71,130.65,6.123]
[1718987188981,6.1214,130.69,130.65,6.123]
[1718987189185,6.121,130.7,130.65,16.0488]
[1718987189378,6.121,130.7,130.65,22.1717]
[1718987189581,15.2979,130.74,130.65,16.0488]
[1718987189768,15.2979,130.74,130.68,6.1216]
[1718987190196,6.1202,130.72,130.67,6.122]
[1718987190968,15.2979,130.74,130.68,6.1218]
[1718987191289,6.1195,130.73,130.68,6.1218]
[1718987191596,275.6953,130.76,130.65,16.0488]
[1718987191778,6.1192,130.74,130.69,6.1211]
[1718987191970,6.1196,130.73,130.68,6.1214]
[1718987193593,6.1196,130.73,130.69,6.1212]
[1718987193996,260.4,130.76,130.7,21.5297]
[1718987194296,6.1175,130.78,130.73,6.1192]
[1718987195602,6.1167,130.79,130.74,6.1189]
[1718987195896,283.63015075,130.83,130.75,21.5297]
[1718987196073,6.1158,130.81,130.76,6.1177]
[1718987196276,6.1162,130.8,130.75,27.6481]
[1718987196793,6.1162,130.8,130.76,6.118]
[1718987197300,6.1162,130.8,130.75,27.648]
[1718987197500,6.1168,130.79,130.75,21.5297]
[1718987198083,6.1168,130.79,130.75,27.6481]
[1718987198590,6.1164,130.8,130.75,27.6481]
[1718987198895,6.1167,130.79,130.75,21.5297]
[1718987199086,6.1167,130.79,130.75,27.6482]
[1718987199795,6.1164,130.8,130.75,27.6482]
[1718987200002,6.1167,130.79,130.75,27.6482]
[1718987200178,6.1159,130.81,130.75,21.5297]
[1718987200377,6.1171,130.79,130.75,21.5297]
[1718987200703,6.1171,130.79,130.75,27.6482]
[1718987201500,6.1171,130.78,130.75,21.5297]
[1718987201802,20.0,130.81,130.75,21.5297]
[1718987201978,6.1173,130.78,130.75,21.5297]
[1718987202179,6.118,130.76,130.75,21.5297]
[1718987202403,6.1178,130.77,130.75,6.1183]
[1718987203085,15.2913,130.8,130.75,6.1183]
[1718987203293,6.1177,130.77,130.75,6.1183]
[1718987203479,6.118,130.76,130.75,6.1183]
[1718987203678,6.118,130.76,130.72,28.3652]
[1718987203890,20.0,130.75,130.68,28.3667]
[1718987204179,6.1197,130.73,130.68,22.2453]
[1718987204399,6.1192,130.74,130.69,6.1212]
[1718987204591,6.1187,130.75,130.7,6.1206]
[1718987204790,6.1176,130.77,130.68,22.2453]
[1718987205109,6.1176,130.77,130.72,6.1196]
[1718987205409,20.0,130.76,130.72,6.1196]
[1718987205777,20.0,130.76,130.7,6.1206]
[1718987205978,6.1186,130.75,130.7,6.1206]
[1718987206476,6.1187,130.75,130.7,6.1206]
[1718987207673,6.119,130.74,130.7,6.1206]
[1718987207877,6.1187,130.75,130.7,6.1206]
[1718987210492,6.1183,130.76,130.68,37.5487]
[1718987210695,6.1185,130.75,130.71,6.1201]
[1718987211205,6.1182,130.76,130.72,6.1198]
[1718987211508,6.1177,130.77,130.72,6.1198]
[1718987211799,20.0,130.76,130.72,6.1198]
[1718987212581,20.0,130.76,130.7,15.3013]
[1718987212782,15.2909,130.8,130.7,15.3013]
[1718987212783,20.0,130.77,130.7,15.3013]
[1718987213022,6.1183,130.76,130.7,15.3013]
[1718987213188,6.1178,130.77,130.7,15.3013]
[1718987213513,20.0,130.76,130.72,6.1197]
[1718987213704,15.2894,130.81,130.71,15.3]
[1718987214010,6.1173,130.78,130.73,6.1192]
[1718987214208,15.2914,130.8,130.72,21.2786]
[1718987214520,6.1178,130.77,130.73,6.1194]
[1718987214684,6.1173,130.78,130.73,6.1194]
[1718987215599,6.1173,130.78,130.74,6.1189]
[1718987216308,6.1168,130.79,130.74,6.1189]
[1718987216504,6.1171,130.78,130.73,6.1193]
[1718987216689,6.1173,130.78,130.72,15.1588]
[1718987217010,15.2893,130.81,130.72,15.1588]
[1718987217221,6.1173,130.78,130.74,6.1189]
[1718987217389,6.1172,130.78,130.74,6.1188]
[1718987217590,6.1172,130.78,130.73,6.1192]
[1718987218495,6.1172,130.78,130.74,6.1189]
[1718987218889,6.1172,130.78,130.73,6.1192]
[1718987219083,44.92079286,130.82,130.72,15.1588]
[1718987219386,6.1187,130.75,130.72,15.1588]
[1718987219802,6.1179,130.77,130.72,21.2783]
[1718987220090,35.6773,130.78,130.73,6.1194]
[1718987220303,20.0,130.77,130.72,21.2786]
[1718987220505,20.0,130.77,130.69,6.0308]
[1718987220694,6.1201,130.72,130.69,6.0308]
[1718987221312,6.1191,130.74,130.69,12.1518]
[1718987221622,6.1195,130.73,130.69,12.152]
[1718987221912,6.1191,130.74,130.69,12.152]
[1718987222117,6.1191,130.74,130.7,6.1208]
[1718987222297,6.1187,130.75,130.71,6.1203]
[1718987222492,6.121,130.7,130.64,6.2747]
[1718987222692,6.1214,130.69,130.64,6.2747]
[1718987222904,6.1219,130.68,130.64,6.2747]
[1718987223107,29.56,130.72,130.64,6.2747]
[1718987223287,15.3025,130.7,130.64,12.3983]
[1718987223496,6.1217,130.69,130.64,12.3983]
[1718987224038,6.1217,130.69,130.65,6.1232]
[1718987224823,26.1208,130.71,130.66,6.1224]
[1718987225500,6.1201,130.72,130.64,21.5831]
[1718987225801,15.4678,130.74,130.66,6.1224]
[1718987226000,6.1211,130.7,130.65,6.1232]
[1718987226307,6.1206,130.71,130.66,6.1226]
[1718987226503,26.1209,130.7,130.65,6.123]
[1718987226711,6.1209,130.7,130.65,6.123]
[1718987227320,6.1206,130.71,130.66,6.1227]
[1718987227521,20.0,130.7,130.64,6.2747]
[1718987227905,15.4676,130.74,130.64,21.5831]
[1718987227906,6.1201,130.72,130.64,21.5831]
[1718987228110,15.2976,130.74,130.64,21.5831]
[1718987228304,6.12,130.72,130.67,6.1219]
[1718987228815,6.1204,130.71,130.67,6.1219]
[1718987229406,6.1204,130.71,130.64,21.5831]
[1718987229599,6.1204,130.71,130.67,6.1221]
[1718987229907,20.0,130.73,130.66,6.1225]
[1718987230099,6.1206,130.71,130.66,6.1225]
[1718987230734,6.1206,130.71,130.67,6.1222]
[1718987230919,6.1209,130.7,130.66,6.1225]
[1718987231113,6.1209,130.7,130.65,6.123]
[1718987231319,35.2994,130.73,130.64,12.3983]
[1718987231320,6.1214,130.69,130.64,12.3983]
[1718987231513,6.1214,130.69,130.64,12.3981]
[1718987231710,6.121,130.7,130.65,6.1231]
[1718987232426,6.1203,130.72,130.64,21.5838]
[1718987233010,6.1193,130.74,130.69,6.1211]
[1718987233211,6.1192,130.74,130.69,6.1211]
[1718987233539,6.1187,130.75,130.7,6.1206]
[1718987233719,20.0,130.74,130.7,6.1206]
[1718987234534,26.1191,130.74,130.7,6.1206]
[1718987235838,6.1195,130.73,130.69,6.1211]
[1718987236208,6.1192,130.74,130.7,6.1207]
[1718987236408,6.1187,130.75,130.71,6.1204]
[1718987236703,6.1177,130.77,130.72,6.1199]
[1718987237133,6.1177,130.77,130.72,6.1196]
[1718987237341,6.1172,130.78,130.73,6.1194]
[1718987237504,6.1172,130.78,130.7,21.79]
[1718987237709,6.1172,130.78,130.73,6.1193]
[1718987239240,6.1167,130.79,130.74,6.1188]
[1718987239447,20.0,130.78,130.74,6.1188]
[1718987239628,26.1172,130.78,130.73,6.1192]
[1718987239814,26.1172,130.78,130.74,6.1189]
[1718987240012,20.0,130.78,130.75,6.1184]
[1718987240320,20.0,130.78,130.74,21.979]
[1718987240727,15.2999,130.85,130.74,15.8603]
[1718987241040,15.2999,130.85,130.8,6.1159]
[1718987241041,20.0,130.84,130.8,6.1159]
[1718987241205,26.1144,130.84,130.75,6.1903]
[1718987241409,20.0,130.84,130.8,6.1158]
[1718987241610,6.1144,130.84,130.79,6.1164]
[1718987242041,6.1144,130.84,130.76,0.34]
[1718987242042,6.1152,130.82,130.78,6.1171]
[1718987242205,6.1152,130.82,130.77,6.1173]
[1718987242412,6.1152,130.82,130.78,6.117]
[1718987243034,6.1148,130.83,130.78,6.117]
[1718987243224,36.65056642,130.86,130.75,21.4857]
[1718987243225,6.1145,130.84,130.79,6.1164]
[1718987243742,6.114,130.85,130.8,6.116]
[1718987244039,20.0,130.84,130.8,6.116]
[1718987245443,20.0,130.84,130.81,6.1156]
[1718987246144,6.1134,130.86,130.81,6.1156]
[1718987246448,6.1127,130.88,130.83,6.1147]
[1718987246833,6.1127,130.88,130.84,6.1143]
[1718987247152,6.1127,130.88,130.83,6.1145]
[1718987247312,266.5123,130.89,130.84,6.1142]
[1718987247513,6.1125,130.88,130.84,6.1142]
[1718987248131,6.1125,130.88,130.83,6.1146]
[1718987248324,6.1129,130.87,130.83,6.1146]
[1718987248527,15.9716,130.9,130.81,22.0669]
[1718987248528,6.1127,130.88,130.81,22.0669]
[1718987248731,44.7784,130.91,130.81,22.0669]
[1718987248732,29.5,130.91,130.82,0.17]
[1718987248923,6.1123,130.89,130.84,6.1142]
[1718987249112,20.0,130.9,130.82,0.17]
[1718987249317,20.0,130.9,130.82,15.4571]
[1718987249617,26.1117,130.9,130.85,6.1136]
[1718987249821,16.2657,130.94,130.82,15.4571]
[1718987249822,261.2533461,130.96,130.86,21.2239]
[1718987250127,6.1108,130.92,130.87,6.1128]
[1718987250338,44.7738,130.95,130.87,6.1128]
[1718987250652,6.111,130.92,130.87,6.1128]
[1718987251218,29.5,130.95,130.86,21.2239]
[1718987251438,6.1117,130.9,130.86,21.2239]
[1718987251955,6.1107,130.92,130.87,6.1126]
[1718987252127,20.0,130.94,130.86,21.2239]
[1718987252327,20.0,130.94,130.9,6.1113]
[1718987252328,6.1097,130.94,130.9,6.1113]
[1718987252529,20.0,130.93,130.9,6.1113]
[1718987252738,26.1092,130.95,130.9,6.1113]
[1718987252944,20.0,130.95,130.91,6.111]
[1718987253452,26.1092,130.95,130.9,6.1113]
[1718987253627,26.1092,130.95,130.91,6.1109]
[1718987253816,20.0,130.95,130.92,6.1105]
[1718987254017,20.0,130.95,130.91,6.1108]
[1718987254248,20.0,130.95,130.91,6.1107]
[1718987254423,26.1092,130.95,130.91,6.1107]
[1718987254621,26.1092,130.95,130.9,6.1113]
[1718987254829,26.1092,130.95,130.91,6.1109]
[1718987255243,20.0,130.95,130.91,6.1109]
[1718987255557,0.8533461,130.96,130.92,6.1105]
[1718987255726,0.8533461,130.96,130.94,6.1092]
[1718987255932,6.9623461,130.96,130.91,6.1107]
[1718987256248,0.8533461,130.96,130.86,21.2239]
[1718987256419,6.1116,130.9,130.86,27.3371]
[1718987256625,6.1107,130.92,130.86,21.2239]
[1718987256935,6.1106,130.92,130.88,6.1122]
[1718987257142,6.1103,130.93,130.88,6.1122]
[1718987257340,15.2733,130.95,130.88,6.1122]
[1718987257536,20.0,130.94,130.88,6.1121]
[1718987257731,20.0,130.94,130.87,6.1126]
[1718987258035,45.0,130.93,130.86,27.337]
[1718987258233,6.1113,130.91,130.86,27.337]
[1718987258936,61.2872,130.93,130.83,6.0768]
[1718987259252,6.1125,130.88,130.83,12.1913]
[1718987259555,15.2797,130.9,130.83,12.1914]
[1718987259763,6.1131,130.87,130.83,6.0768]
[1718987259927,6.1136,130.86,130.81,6.1156]
[1718987260544,6.1139,130.85,130.8,12.1929]
[1718987260765,6.1143,130.84,130.8,12.1929]
[1718987261060,6.1143,130.84,130.79,6.1164]
[1718987261267,6.1143,130.84,130.8,6.1161]
[1718987261438,20.0,130.83,130.8,6.1161]
[1718987261642,20.0,130.83,130.79,6.1164]
[1718987261853,0.17,130.86,130.79,15.2913]
[1718987262136,20.0,130.87,130.77,21.7303]
[1718987262335,6.1139,130.85,130.8,6.1161]
[1718987262566,6.1139,130.85,130.77,21.7303]
[1718987262567,20.0,130.84,130.81,6.1156]
[1718987262940,20.0,130.84,130.8,6.116]
[1718987263139,6.1124,130.88,130.78,30.584]
[1718987263346,20.0,130.87,130.83,6.1144]
[1718987263744,20.0,130.87,130.84,6.1142]
[1718987263948,6.1116,130.9,130.85,6.1138]
[1718987264155,20.0,130.89,130.85,6.1138]
[1718987264460,6.1129,130.87,130.83,6.1145]
[1718987264875,6.113,130.87,130.82,6.1151]
[1718987265076,6.1126,130.88,130.83,6.1145]
[1718987265249,20.0,130.87,130.83,6.1145]
[1718987265869,20.0,130.87,130.84,6.1142]
[1718987266854,26.1125,130.88,130.84,6.1142]
[1718987267052,6.1131,130.87,130.79,15.6313]
[1718987267255,6.1134,130.86,130.8,6.1157]
[1718987267448,6.1134,130.86,130.79,15.2913]
[1718987267449,6.1134,130.86,130.81,6.1156]
[1718987267965,20.0,130.88,130.84,6.114]
[1718987268163,26.1122,130.89,130.84,6.114]
[1718987269168,20.0,130.89,130.85,6.1136]
[1718987269349,6.1121,130.89,130.84,6.1141]
[1718987269551,26.1117,130.9,130.85,6.1137]
[1718987270050,6.1121,130.89,130.84,6.1141]
[1718987270558,26.1117,130.9,130.85,6.1138]
[1718987270947,6.112,130.89,130.85,6.1138]
[1718987271162,6.112,130.89,130.84,6.1141]
[1718987271446,26.1117,130.9,130.85,6.1138]
[1718987271657,6.112,130.89,130.84,6.1141]
[1718987272174,6.1126,130.88,130.83,28.5686]
[1718987272547,6.1126,130.88,130.84,6.1142]
[1718987272742,20.0,130.9,130.85,6.1138]
[1718987273045,20.0,130.9,130.87,6.1129]
[1718987273259,6.1103,130.93,130.88,6.1122]
[1718987273466,29.49,130.94,130.89,6.1119]
[1718987273467,20.0,130.92,130.89,6.1119]
[1718987273748,20.0,130.93,130.89,6.1119]
[1718987273970,6.1102,130.93,130.88,6.1122]
[1718987274152,20.0,130.92,130.88,6.1122]
[1718987274571,26.1106,130.92,130.88,6.1122]
[1718987275060,6.1112,130.91,130.85,15.2837]
[1718987275259,6.1112,130.91,130.86,6.1131]
[1718987275673,26.1108,130.92,130.87,6.1128]
[1718987275868,6.1112,130.91,130.87,6.1128]
[1718987276081,26.1108,130.92,130.87,6.1127]
[1718987276380,6.111,130.91,130.87,6.1127]
[1718987276574,20.0,130.92,130.84,15.2849]
[1718987276575,26.1107,130.92,130.88,6.1123]
[1718987276777,20.0,130.92,130.88,6.1123]
[1718987277075,26.1108,130.92,130.87,6.1127]
[1718987277561,26.1108,130.92,130.88,6.1124]
[1718987277761,20.0,130.92,130.88,6.1124]
[1718987278968,20.0,130.92,130.87,6.1128]
[1718987279275,20.0,130.93,130.87,6.1128]
[1718987280180,6.1107,130.92,130.87,6.1128]
[1718987280355,26.1103,130.93,130.89,6.1119]
[1718987280555,20.0,130.93,130.88,6.1123]
[1718987280888,26.1105,130.93,130.89,6.1119]
[1718987281055,26.1105,130.93,130.88,6.1123]
[1718987281056,6.1106,130.92,130.88,6.1123]
[1718987281258,6.1108,130.92,130.87,6.1128]
[1718987281571,6.1112,130.91,130.86,6.1131]
[1718987281768,6.1113,130.91,130.86,6.1131]
[1718987281970,15.2774,130.92,130.83,22.454]
[1718987282162,6.1121,130.89,130.84,6.114]
[1718987282361,6.1129,130.87,130.82,6.1148]
[1718987282963,31.5801,130.9,130.82,6.1148]
[1718987283186,31.5801,130.9,130.8,37.7633]
[1718987283187,6.1141,130.85,130.8,28.5898]
[1718987283473,20.0,130.84,130.8,6.1161]
[1718987283677,26.1143,130.84,130.8,6.1161]
[1718987283879,20.0,130.84,130.8,6.1161]
[1718987284186,20.0,130.84,130.81,6.1156]
[1718987284478,20.0,130.84,130.8,6.116]
[1718987285571,26.1144,130.84,130.8,6.116]
[1718987286277,20.0,130.84,130.8,6.116]
[1718987286457,34.78,130.89,130.82,6.115]
[1718987286458,6.1133,130.87,130.82,6.115]
[1718987286970,20.0,130.86,130.83,6.1146]
[1718987287174,20.0,130.87,130.83,6.1146]
[1718987287681,20.0,130.87,130.84,6.1143]
[1718987287981,20.0,130.87,130.83,6.1145]
[1718987288965,20.0,130.87,130.84,6.1141]
[1718987289167,6.1122,130.89,130.84,6.1141]
[1718987289168,20.0,130.88,130.84,6.1141]
[1718987289361,20.0,130.88,130.78,30.5851]
[1718987289362,20.0,130.88,130.87,6.1129]
[1718987289560,20.0,130.88,130.85,6.1136]
[1718987289780,26.112,130.89,130.85,6.1136]
[1718987290159,30.42959134,130.92,130.8,15.2904]
[1718987290365,30.42959134,130.92,130.77,16.6285]
[1718987290366,15.2833,130.87,130.77,16.6285]
[1718987290664,0.17,130.86,130.79,6.1162]
[1718987290976,6.1144,130.84,130.77,16.6285]
[1718987291280,6.1144,130.84,130.79,6.1165]
[1718987291478,6.1144,130.84,130.77,16.6285]
[1718987291479,6.1141,130.85,130.8,6.1161]
[1718987291676,6.1143,130.84,130.8,6.1161]
[1718987291886,6.114,130.85,130.8,6.1161]
[1718987292055,6.1143,130.84,130.8,6.1161]
[1718987292248,6.114,130.85,130.81,6.1156]
[1718987292465,20.0,130.84,130.81,6.1156]
[1718987292667,20.0,130.84,130.82,6.115]
[1718987292877,6.1134,130.86,130.82,6.115]
[1718987293081,36.83395631,130.92,130.77,16.6285]
[1718987293268,20.0,130.91,130.78,6.8492]
[1718987293464,20.0,130.91,130.88,6.1122]
[1718987293667,16.3067,130.95,130.89,6.1119]
[1718987293878,26.1099,130.94,130.86,15.2827]
[1718987294056,20.0,130.94,130.92,6.1102]
[1718987294263,6.1093,130.95,130.9,6.1113]
[1718987294859,6.1101,130.93,130.86,15.2832]
[1718987295177,6.1107,130.92,130.86,15.2832]
[1718987295359,6.1103,130.93,130.88,6.1124]
[1718987295556,6.1107,130.92,130.85,6.6792]
[1718987295763,15.274,130.95,130.86,6.113]
[1718987295764,6.1112,130.91,130.86,6.113]
[1718987296177,60.4451,130.94,130.85,6.5092]
[1718987296376,6.1107,130.92,130.87,6.1127]
[1718987297077,20.17,130.93,130.87,6.1127]
[1718987297078,6.1111,130.91,130.87,6.1127]
[1718987297859,35.4461,130.93,130.85,6.5092]
[1718987298060,6.1112,130.91,130.86,6.1133]
[1718987299374,26.1102,130.93,130.89,6.1119]
[1718987299576,20.0,130.93,130.85,6.5092]
[1718987299777,20.0,130.94,130.9,6.1112]
[1718987300181,26.1097,130.94,130.9,6.1112]
[1718987300581,20.0,130.94,130.9,6.1112]
[1718987301108,0.8533461,130.96,130.9,16.5307]
[1718987301284,0.8533461,130.96,130.92,6.3713]
[1718987301602,0.8533461,130.96,130.94,6.1094]
[1718987302503,0.8533461,130.96,130.93,6.1099]
[1718987302684,0.8533461,130.96,130.94,6.1096]
[1718987303596,0.8533461,130.96,130.92,6.3713]
[1718987303597,6.9622461,130.96,130.92,6.3713]
[1718987303807,0.8533461,130.96,130.92,6.3713]
[1718987304095,6.9620461,130.96,130.92,6.3713]
[1718987304775,6.9620461,130.96,130.92,12.4818]
[1718987304981,0.8533461,130.96,130.92,12.4818]
[1718987305313,0.8533461,130.96,130.94,6.1092]
[1718987305672,0.8533461,130.96,130.95,6.1092]
[1718987305887,0.8533461,130.96,130.92,6.3713]
[1718987306103,0.8533461,130.96,130.93,6.1099]
[1718987306871,0.8533461,130.96,130.94,6.1095]
[1718987308497,0.8533461,130.96,130.93,6.1099]
[1718987308874,0.8533461,130.96,130.94,6.1095]
[1718987309496,0.8533461,130.96,130.93,6.1099]
[1718987309828,0.8533461,130.96,130.92,12.4816]
[1718987310186,6.9620461,130.96,130.92,6.3713]
[1718987310388,0.8533461,130.96,130.91,6.1109]
[1718987310587,6.1093,130.95,130.9,22.642]
[1718987311288,0.8533461,130.96,130.9,16.5307]
[1718987311488,20.8533461,130.96,130.94,6.1095]
[1718987311806,0.8533461,130.96,130.94,6.1095]
[1718987312911,0.8533461,130.96,130.95,43.5633]
[1718987313603,6.1055,131.03,130.95,43.5633]
[1718987313906,6.1055,131.03,130.99,6.1073]
[1718987314110,6.1055,131.03,130.98,6.1076]
[1718987314400,6.1074,130.99,130.92,21.9772]
[1718987314590,6.107,131.0,130.95,6.1089]
[1718987314990,29.45,131.03,130.92,21.9772]
[1718987314991,20.0,130.99,130.92,21.9772]
[1718987315296,6.1076,130.99,130.92,21.9772]
[1718987315483,6.1074,130.99,130.95,6.109]
[1718987315676,6.1074,130.99,130.94,6.1093]
[1718987316099,6.1074,130.99,130.86,39.429991]
[1718987316100,64.5176,131.0,130.89,6.3191]
[1718987316285,6.1099,130.94,130.89,12.4309]
[1718987316489,29.45,130.97,130.89,12.4309]
[1718987316490,6.1101,130.93,130.89,12.4309]
[1718987316894,6.1097,130.94,130.89,12.4309]
[1718987317077,44.7217,130.97,130.91,6.1109]
[1718987317078,29.45,130.97,130.91,6.1109]
[1718987317286,26.1089,130.96,130.91,6.1109]
[1718987319515,20.0,130.96,130.92,6.1103]
[1718987319706,20.0,130.96,130.94,6.1096]
[1718987319883,15.0676,131.0,130.9,0.17]
[1718987319884,20.0,130.99,130.9,0.17]
[1718987320085,20.0,130.99,130.95,6.1088]
[1718987320313,20.0,130.99,130.93,6.1096]
[1718987320608,20.0,130.99,130.92,15.2756]
[1718987320798,26.1075,130.99,130.94,6.1095]
[1718987321294,20.0,130.99,130.93,6.1101]
[1718987321500,0.17,130.98,130.91,6.111]
[1718987321707,45.34,130.98,130.91,6.111]
[1718987322011,20.0,130.97,130.89,21.5982]
[1718987322307,20.0,130.97,130.89,6.3191]
[1718987322489,0.17,130.96,130.89,6.3191]
[1718987322690,0.34,130.96,130.9,6.1113]
[1718987323400,0.34,130.96,130.89,12.4308]
[1718987323605,0.17,130.96,130.9,6.1113]
[1718987323795,0.17,130.96,130.89,6.3191]
[1718987324002,45.34,130.96,130.88,6.1123]
[1718987324205,20.0,130.95,130.87,6.1128]
[1718987324391,45.17,130.94,130.88,6.1123]
[1718987324590,20.0,130.93,130.88,6.1123]
[1718987325307,0.17,130.94,130.87,6.1127]
[1718987325518,20.0,130.96,130.88,6.1123]
[1718987325519,45.34,130.95,130.88,6.1123]
[1718987325810,20.0,130.94,130.87,6.1127]
[1718987325981,20.0,130.94,130.86,6.5346]
[1718987326183,20.0,130.94,130.88,6.1123]
[1718987327102,20.0,130.94,130.86,6.5346]
[1718987327103,35.1308,130.94,130.86,6.5346]
[1718987327312,45.34,130.93,130.86,6.113]
[1718987327617,20.0,130.92,130.87,6.1127]
[1718987328786,20.0,130.92,130.88,6.1123]
[1718987328994,20.0,130.93,130.89,6.1117]
[1718987330211,20.0,130.93,130.89,6.1118]
[1718987330515,20.0,130.93,130.88,6.1122]
[1718987330997,20.0,130.93,130.89,6.1119]
[1718987331610,20.0,130.93,130.88,6.1124]
[1718987331890,20.0,130.93,130.87,6.1126]
[1718987332107,20.0,130.93,130.86,6.1132]
[1718987332332,45.34,130.92,130.86,6.1132]
[1718987332623,20.0,130.91,130.84,6.1142]
[1718987332918,20.0,130.91,130.82,15.5509]
[1718987333121,45.34,130.9,130.8,21.631]
[1718987333422,20.0,130.89,130.81,15.2883]
[1718987334104,20.0,130.89,130.84,6.1141]
[1718987334313,20.0,130.89,130.83,6.1145]
[1718987334819,0.17,130.88,130.83,6.1145]
[1718987335016,0.17,130.88,130.82,6.1151]
[1718987335315,0.17,130.88,130.83,6.1146]
[1718987336112,0.17,130.88,130.84,6.1143]
[1718987337025,20.0,130.89,130.86,6.1131]
[1718987337227,15.1308,130.94,130.87,6.1127]
[1718987337228,20.0,130.93,130.87,6.1127]
[1718987337410,45.0,130.92,130.87,6.1127]
[1718987337735,20.0,130.91,130.85,6.1136]
[1718987337900,20.0,130.91,130.81,30.5776]
[1718987338105,20.0,130.91,130.88,6.1121]
[1718987338304,20.0,130.92,130.87,6.1127]
[1718987339615,20.0,130.93,130.87,6.1127]
[1718987339850,20.0,130.93,130.88,6.1124]
[1718987340424,20.0,130.93,130.85,15.2839]
[1718987340608,0.34,130.92,130.87,6.1128]
[1718987343532,0.34,130.92,130.86,6.1131]
[1718987343719,0.34,130.92,130.87,6.1129]
[1718987344033,20.0,130.93,130.87,6.1129]
[1718987344334,20.0,130.93,130.89,6.1118]
[1718987344808,20.0,130.93,130.91,6.1109]
[1718987345009,20.0,130.93,130.88,15.28]
[1718987345331,6.15163644,130.96,130.9,6.1112]
[1718987345332,20.0,130.95,130.9,6.1112]
[1718987345532,20.0,130.95,130.93,6.1097]
[1718987345708,15.2773,131.0,130.94,6.1095]
[1718987345913,20.0,130.99,130.91,15.2768]
[1718987346119,20.0,130.99,130.87,30.5638]
[1718987346426,20.0,130.99,130.93,6.1099]
[1718987347712,0.17,130.98,130.9,15.2779]
[1718987348043,0.34,130.98,130.92,6.1102]
[1718987348227,0.34,130.98,130.93,6.11]
[1718987348406,20.0,130.99,130.94,6.1093]
[1718987348729,16.3698,131.03,130.91,6.6215]
[1718987348927,16.3698,131.03,130.98,6.1077]
[1718987348928,20.0,131.02,130.98,6.1077]
[1718987349147,20.0,131.02,131.0,6.1065]
[1718987349429,20.0,131.02,130.96,15.2709]
[1718987349634,20.0,131.04,130.95,15.3415]
[1718987349932,20.0,131.04,130.98,6.1075]
[1718987350138,20.0,131.05,130.97,15.2703]
[1718987350521,20.0,131.05,130.99,6.107]
[1718987351323,20.0,131.05,131.0,6.1068]
[1718987351511,20.0,131.05,131.01,6.1062]
[1718987351928,0.8533461,131.09,130.98,6.6215]
[1718987352139,0.8533461,131.09,131.04,6.1047]
[1718987352140,20.8533461,131.09,131.04,6.1047]
[1718987352433,0.8533461,131.09,131.04,6.1047]
[1718987352633,0.8533461,131.09,131.05,6.1044]
[1718987352843,0.8533461,131.09,131.01,15.265]
[1718987353135,0.8533461,131.09,131.03,6.1051]
[1718987353318,0.8533461,131.09,131.01,15.265]